Workbook

Sheet Menu
B3: Contact | C3: Gordon Lyman | L3: Bill Griswold
B4: Email | C4: gl@esystemtraining.com | L4: BillGriswold@Live.com
B5: Mobile No | C5: (210) 410-2091 | F5: Menu de Configuration | L5: (704) 906-9113
E7: Note: Champs en | G7: Bleu | H7: sont pour les entrées | Q7: Oui | Y7: Monopole Tower
E8: Information Project | K8: Info Entrepreneur | Q8: Non | Y8: Guyed Tower | AA8: Procedures d'utilisation
B9: Date: mm/jj | I9: Compagnie | AA9: 1 - Mettre les informations sur le projet et l'entrepreneur dans les cellules appropriees a gauche Cette information apparaitra dans le "plan de montage". 2 - La charge levee devrait inclure le poids de la boule de maux de tete ou autre equipment de fixation dans la cellule "charge a lever". 3 - Selectionnez les poulies et les cabestans a utiliser pour le projet. (Voir l'onglet Equipement pour la liste) 4 - Selectionnez le type de schema de levage (1,2 ou 3) 5 - Sur la feuille Type de levage Selectionnez le type de tour et remplissez les cellules indiquees en BLEU. Toutes les informations de chargement et d'equipements apparaissent sur les 3 types de levage 6 - Les boutons permettent une navigation facile entre les feuilles differentes. 7 - Pour de plus amples instructions, voir les onglets "Plan de levage" " Montage de tete" et "Equipements".
B10: Client | I10: Adresse
B11: No Commande Client | I11: Ville, Province | Q11: Distance | Y11: YES
B12: Nom du Site | I12: Contact | Q12: Angle
B13: # Site | I13: No Telephone
B14: Adresse Site | I14: Monteur Certifié
B15: Ville, Province | I15: # Project | S15: =VLOOKUP(K17,Équipements!B23:C34,2,FALSE) -> 5000
B16: Site Lat: Deg, Min, Sec | E16: 33 | F16: 30 | G16: 14.08 | I16: Charge (lbs) | K16: 200 | Q16: =IF(AD15="Distance",TRUE,FALSE) -> FALSE | S16: =VLOOKUP(K18,Équipements!B23:C34,2,FALSE) -> 5000
B17: Site Long: Deg, Min, Sec | E17: -86 | F17: 49 | G17: 18.44 | I17: Poulie Tête | K17: Block 3 - 5000 | S17: =VLOOKUP(K19,Équipements!B9:C20,2,FALSE) -> 5000
B18: Force Class IV | E18: Non | I18: Poulie Base | K18: Block 3 - 5000 | S18: =VLOOKUP(K20,Équipements!B9:C20,2,FALSE) -> 5000
I19: Cabestan Levage | K19: Hoist 4 - 5000
I20: Cabestan Tag | K20: Hoist 4 - 5000
Q21: =IF(AD15="Angle",TRUE,FALSE) -> FALSE
Q23: Alpha = | R23: =IF(AD15="Angle",G27,F25) -> 0
Q24: Standoff = | R24: =IF(AD15="Angle",#REF!,E34) -> 0
Q25: Beta = | R25: =ATAN(H39/(F50-R24))*180/PI() -> 
Q26: A = | R26: =F38/(1-TAN(R23*PI()/180)*TAN(R25*PI()/180)) -> 
Q27: B = | R27: =R26*TAN(R23*PI()/180) -> 
Q28: C = | R28: =R27*TAN(R25*PI()/180) -> 
Q29: D = | R29: =R27 -> 
Q30: Line Load = | R30: =SQRT((R26^2)+(R27^2)) -> 
Q31: Tag Load = | R31: =SQRT((R28^2)+(R29^2)) -> 
Q32: Crown Block | R32: =SQRT((R27^2)+((R30+R26)^2)) -> 
Q33: Error Angle | R33: =ATAN(F50/K27)*180/PI() -> 
B53: Avertissement: Les informations et les calculs par ce document ont ete developpes par une source fiable conformement aux normes de l'industrie et sont consideres comme correctes. Cette information ne devrait pas etre invoquee pour une application specifique sans l'examen par professionnel competent incluant la verification de son exactitude, la pertinence et l'applicabilite. Ce documentpeutne pas etre adaptable a' toutes les situations et doit etre utilise a vois risques et perils
B56: =Credits!B11 -> French Version 1.0 - January 11, 2018 | N56: Developed by Griswold Tower Software, PC

Sheet Plan de Levage
A1: Cdler votre logo dans cette section | F1: =Menu!K9 -> 0 | T1: Pour mettre votre logo sur le plan de levage copier le dans powerpoit et faire un copier coller dans le coin superieur gauche de la feuille.
F2: =Menu!K10 -> 0
F3: =Menu!K11 -> 0
F4: ="Contact - "&Menu!K12 -> Contact -
F5: =Menu!K13 -> 0
A6: Plan de Levage | H6: Couleur sont les Entrees
A7: Information Projet
A8: Nom du Site | C8: =Menu!E12 -> 0 | F8: Date | H8: =Menu!E9 -> 00:00:00
A9: # Site | C9: =Menu!E13 -> 0 | F9: Client | H9: =Menu!E10 -> 0 | P9: Class I
A10: Adresse du Site | C10: =Menu!E14 -> 0 | F10: Projet de Client | H10: =Menu!E11 -> 0 | P10: Class II
C11: =Menu!E15 -> 0 | F11: Latitude | H11: =Menu!E16&" Deg "&Menu!F16&" Min "&Menu!G16&" Sec" -> 33 Deg 30 Min 14.08 Sec | N11: Engr May Be Req'd | P11: Class III
A12: # Projet | C12: =Menu!K15 -> 0 | F12: Longitude | H12: =Menu!E17&" Deg "&Menu!F17&" Min "&Menu!G17&" Sec" -> -86 Deg 49 Min 18.44 Sec | N12: E27 | O12: =IF(E27="X",1,0) -> 0 | P12: Class IV
A13: Classe de Levage | C13: =IF(Menu!E18="Oui","Class IV",IF(M20>0,"Class IV",M24)) -> Class I | F13: Max. Load (lbs) | H13: =Menu!K16 -> 200 | L13: Engr Req'd | N13: E24 | O13: =IF(E24="X",1,0) -> 0
E14: Lbs. | M14: =IF(E31="X",1,0) -> 0
A15: Personne Responsable | D15: Nom | G15: Compagnie | I15: Telephone | L15: E26 | M15: =IF(E26="X",1,0) -> 0 | N15: E29 | O15: =IF(E29="X",1,0) -> 0 | P15: Monopole
A16: Monteur Certifie | D16: =Menu!K14 -> 0 | G16: =Menu!K9 -> 0 | I16: =F5 -> 0 | N16: E30 | O16: =IF(E30="X",1,0) -> 0 | P16: Autoportante
A17: ="Personnel Qualifie "&M25 -> Personnel Qualifie Non requis | L17: G33 | M17: =IF(G33="X",1,0) -> 0 | N17: J26 | O17: =IF(J26="X",1,0) -> 0 | P17: Haubannée
A18: ="Ingenieur Qualifie "&M21 -> Ingenieur Qualifie Non requis | L18: J48 | M18: =IF(J48="X",1,0) -> 0 | N18: J27 | O18: =IF(J27="X",1,0) -> 0 | P18: Toiture
A19: Types de Tour | C19: Autoportante | L19: H13 | M19: =IF(H13>2000,1,0) -> 0 | N19: G32 | O19: =IF(G32="X",1,0) -> 0 | P19: Autre
A20: Donnees sur la Structure | L20: SUM | M20: =SUM(M15:M19) -> 0 | N20: SUM | O20: =SUM(O12:O19) -> 0
A21: Fabricant | F21: Hauteur (AGL) pied | L21: Engr | M21: =IF(Menu!E18="Oui","Champs obligatoires",IF(M24="Class IV","Champs obligatoires",IF(M20>0,"Champs obligatoires",IF(O20>0,"Peut être requis","Non requis")))) -> Non requis | P21: X
A22: Largeur @ base | E22: (pieds) | F22: Longueur type section (pieds)
A23: Nature du Trava'l (cocher) | P23: Type I
A24: ="Novelle Structure "&IF(M21="Req'd","",IF(E24="X","- Engr May Be Req'd","")) -> Novelle Structure | F24: Ajout retrait antennes | L24: Weight | M24: =IF(H13<351,"Class I",IF(H13<501,"Class II",IF(H13<2001,"Class III","Class IV"))) -> Class I | P24: Type II
A25: Ajout / Retrait cable | F25: Ajout retrait support | L25: Person | M25: =IF(Menu!E18="Oui","Champs obligatoires",IF(M24="Class IV","Champs obligatoires",IF(M24="Class III","Champs obligatoires",IF(M20>0,"Req'd",IF(O20>0,"Peut être requis","Non requis"))))) -> Non requis | P25: Type III
A26: Remplacer membrure | F26: ="Ajout renforcement "&IF(M21="Req'd","",IF(J26="X","- Engr May Be Req'd","")) -> Ajout renforcement | P26: Other
A27: ="Remplacer Haubans"&IF(M21="Req'd","",IF(E27="X","- Engr May Be Req'd","")) -> Remplacer Haubans | F27: ="Coupage soudage "&IF(M21="Req'd","",IF(J27="X","- Engr May Be Req'd","")) -> Coupage soudage
A28: Nouvelles Foundations | F28: Installer supports/antennes lignes | M28: =IF(C13="Class IV","FALSE",IF(E24="","FALSE","TRUE")) -> FALSE
A29: ="Modifier Foundations "&IF(M21="Req'd","",IF(E29="X","- Engr May Be Req'd","")) -> Modifier Foundations | F29: Enlever supports/antennes lignes
A30: ="Changer boulons "&IF(M21="Req'd","",IF(E30="X","- Engr May Be Req'd","")) -> Changer boulons | F30: Autres
A31: Equipements Privcipaux
A32: Cabestan Levage | D32: ="Gin Pole"&IF(M21="Req'd","",IF(G32="X","/ Engr May Be Req'd","")) -> Gin Pole | H32: (Autre Equip)
A33: Cabestan cable retenu | D33: Grue | H33: (Autre Equip)
A34: Cabestan hauban | D34: Cabestan | H34: (Autre Equip)
A35: Gréage
A36: Tire-fort | D36: Goupilles | G36: Poulies
A37: Transit/Theodolite | D37: Crochets | G37: Boule levage
A38: Tensiométre | D38: Cordage de retenu | G38: =IF(J37="X","Ball Weight-lbs","") -> 
A39: Cordage charge | D39: Elingue acier | G39: Boule contre poids
A40: Preforms | D40: Elingue synthetique | G40: =IF(J39="X","Ball Weight-lbs","") -> 
A41: Methode de Levage
E42: Type I
A43: Gréage et CapacitÉ | N43: Crown Block Load | O43: Crown Vertical | P43: Crown Horizontal | Q43: Heel Block Load | R43: Tag Load | S43: Hoist Load
A44: Cable d'acier | D44: KernMantle Cordage | G44: Cordage double tressage | M44: Type
A45: Charge maximale | D45: KernMantle charge | G45: Cordage double tressage charge | M45: Type 1 | N45: ='Type 1'!J22 -> 715.9339615 | O45: ='Type 1'!Q23 -> 711.3992351 | P45: ='Type 1'!Q21 -> 80.4522567 | R45: ='Type 1'!P39 -> 163.9327326 | S45: ='Type 1'!M34 -> 358.3467627
A46: Poulie | D46: Elingues | G46: Goupille | M46: Type 2 | N46: ='Type 2'!G21 -> 400 | O46: ='Type 2'!K19 -> 400 | P46: ='Type 2'!K17 -> 115 | S46: ='Type 2'!F36 -> 200
A47: Type de Levage | M47: Type 3 | N47: ='Type 3'!G20 -> 488.0252603 | O47: ='Type 3'!M22 -> 487.4193901 | P47: ='Type 3'!M20 -> 24.31034483 | Q47: ='Type 3'!E46 -> 345.4627417 | R47: ='Type 3'!J38 -> 49.48636296 | S47: ='Type 3'!F43 -> 244.3159418
A48: Regulier | D48: Personnel | G48: Levage Specialise | M48: Other
A49: =H8 -> 00:00:00 | B49: Job No. | C49: =C12 -> 0 | D49: Site: | E49: =C8 -> 0 | G49: Client: | H49: =H9 -> 0
A50: Nature / Description du Travail
A52: Charges à Partir des Formulaires de Calcul
A53: Poids brut de la charge | C53: =H13 -> 200 | D53: Charge cable retenu | F53: =IF(E42="Type I",R45,IF(E42="Type III",R47,"")) -> 163.9327326 | G53: Charge verticale poulie tête | J53: =IF(E42="Type I",O45,IF(E42="Type II",O46,IF(E42="Type III",O47,""))) -> 711.3992351
A54: =IF(E42="Type III","Heel Block Load","") ->  | C54: =IF(E42="Type III",'Type 3'!E46,"") ->  | D54: Charge cabestan | F54: =IF(E42="Type I",S45,IF(E42="Type II",S46,IF(E42="Type III",S47,""))) -> 358.3467627 | G54: Charge horizontale poulie de tête | J54: =IF(E42="Type I",P45,IF(E42="Type II",P46,IF(E42="Type III",P47,""))) -> 80.4522567
A55: Général Information
A57: Séquences de Travail
A59: Procedure et Séquences des Renforcements
A61: Signature du Monteur Certifie
A65: =Credits!B11 -> French Version 1.0 - January 11, 2018

Sheet Site Layout (hidden)

Sheet Type 1
B3: Contact | E3: Gordon Lyman | W3: Bill Griswold
B4: Email | D4: gl@esystemtraining.com | W4: BillGriswold@Live.com
B5: Mobile No | E5: (210) 410-2091 | K5: Poulie de Tête Avec Cable de Retenu | W5: (704) 906-9113
G7: Information Projet | M7: Note: Champs en | R7: Bleu | T7: sont les entrées | AI7: Tour Monopole
B8: Date: | G8: =Menu!E9 -> 00:00:00 | AI8: Tour Autoportante
B9: Entrepreneur | G9: =Menu!K9 -> 0 | AI9: Tour Haubannée
B10: # Projet | G10: =Menu!K15 -> 0
B11: Monteur certifie | G11: =Menu!K14 -> 0
B12: Client | G12: =Menu!E10 -> 0
B13: Nom du site | G13: =Menu!E12 -> 0
B14: # Site | G14: =Menu!E13 -> 0 | Q14: =IF(AB21>AB34,"WARNING - LOAD ANGLE EXCEEDS MAXIMUM!","") -> 
B15: Type de tour | G15: Tour Autoportante
O19: Notes pour Lingénieur | AA19: =IF(U16="Angle",TRUE,FALSE) -> FALSE
I20: =Menu!K17 -> Block 3 - 5000 | O20: Charge horizontale maximale sur
O21: Tour | Q21: =AB27+AB29 -> 80.4522567 | T21: lbs. | AA21: Alpha = | AB21: =ATAN(H37/(W23-C36))*180/PI() -> 9.090276921
J22: =AB33 -> 715.9339615 | L22: lbs. | O22: Charge verticale maximale sur | W22: ft. | AA22: Beta = | AB22: =ATAN(W23/L46)*180/PI() -> 86.18592517
J23: =IF(J22>Menu!S15,"Capacité poulie excédée","") ->  | P23: Tour | Q23: =AB26+AB28 -> 711.3992351 | T23: lbs. | W23: 300 | AA23: Gamma = | AB23: =ATAN(C36/(L48-H37))*180/PI() -> 69.79638483
O24: Charge excluant limpact
Q25: =IF(U16="Angle","Degrees","") -> 
L26: =AB21 -> 9.090276921 | N26: Degrés | Q26: =IF(U16="Distance","Degrees","") ->  | AA26: A = | AB26: =I40/(1-TAN(AB21*PI()/180)*TAN(AB23*PI()/180)) -> 353.8461538
AA27: B = | AB27: =AB26*TAN(AB21*PI()/180) -> 56.61538462
O28: =IF(L26>10,"Attention, Angle de charge excède 10 degrés","") ->  | AA28: C = | AB28: =AB31*SIN(AB22*PI()/180) -> 357.5530812
AA29: D = | AB29: =AB31*COS(AB22*PI()/180) -> 23.83687208
AA30: E = | AB30: =AB27*TAN(T40*PI()/180) -> 153.8461538
AA31: Line Load = | AB31: =SQRT((AB26^2)+(AB27^2)) -> 358.3467627
AA32: Tag Load = | AB32: =SQRT((AB30^2)+(AB27^2)) -> 163.9327326
M33: ="Cabestan est "&Menu!K19 -> Cabestan est Hoist 4 - 5000 | AA33: Crown Block | AB33: =SQRT(((AB27+AB29)^2)+((AB26+AB28)^2)) -> 715.9339615
M34: =AB31 -> 358.3467627 | O34: lbs. | P34: =IF(T40>70,"Attention, Angle du tag excède 70 degrés","") ->  | AA34: Error Angle | AB34: =ATAN(L48/W23)*180/PI() -> 18.43494882
M35: =IF(M34>Menu!S17,"Capacity Exceeded","") -> 
C36: 250
H37: 8
P39: =AB32 -> 163.9327326
I40: =Menu!K16 -> 200 | K40: lbs. | T40: =AB23 -> 69.79638483 | V40: Degrés
M42: =AB22 -> 86.18592517
M43: Degrés
S45: =AB29 -> 23.83687208 | V45: =AB27 -> 56.61538462 | X45: lbs.
L46: 20
L48: 100 | R48: =AB28 -> 357.5530812
V49: =AB30 -> 153.8461538 | X49: lbs.
B51: Notes de chantier
B54: Avertissement: Les informations et les calculs par ce document ont ete developpes par une source fiable conformement aux normes de l'industrie et sont consideres comme correctes. Cette information ne devrait pas etre invoquee pour une application specifique sans l'examen par professionnel competent incluant la verification de son exactitude, la pertinence et l'applicabilite. Ce documentpeutne pas etre adaptable a' toutes les situations et doit etre utilise a vois risques et perils
B57: =Credits!B11 -> French Version 1.0 - January 11, 2018 | X57: Developed by Griswold Tower Software, PC

Sheet Type 2
B3: Contact | C3: Gordon Lyman | J3: Bill Griswold
B4: Email | C4: gl@esystemtraining.com | J4: BillGriswold@Live.com
B5: Mobile No | C5: (210) 410-2091 | F5: Poulie de tête avec Messager | J5: (704) 906-9113
E7: Information Projet: | H7: Note champs en | J7: Bleu | K7: sont les entrees. | W7: Tour Monopole
B8: Date: | E8: =Menu!E9 -> 00:00:00 | W8: Tour Autoportante
B9: Entrepreur: | E9: =Menu!K9 -> 0 | W9: Tour Haubannée
B10: # Projet: | E10: =Menu!K15 -> 0
B11: Monteur Certifie: | E11: =Menu!K14 -> 0
B12: Client: | E12: =Menu!E10 -> 0
B13: Nom du Site: | E13: =Menu!E12 -> 0
B14: # Site: | E14: =Menu!E13 -> 0 | T14: Y = | U14: 100
B15: Type de Tour: | E15: Tour Haubannée | J15: Notes pour L'ingenieur: | T15: αᵒ | U15: X1 | V15: Y2
I16: Charge Horizontale maximale Tour | T16: 23.555 | U16: 39.235 | V16: 10
J17: Tour | K17: =(2*ROUND((SIN(F26*PI()/180)*F36),1)) -> 115 | T17: 21.444 | U17: 31.423 | V17: 20
J18: Charges horizontale maximale tour | P18: α = | Q18: 13.282 | T18: 19.794 | U18: 25.192 | V18: 30
E19: =Menu!K17 -> Block 3 - 5000 | I19: pi | J19: Tour | K19: =2*F36 -> 400 | P19: Y = | Q19: 100 | T19: 18.435 | U19: 20 | V19: 40
J20: Charges d'impact exclus | P20: X = | Q20: 50 | T20: 17.281 | U20: 15.556 | V20: 50
G21: =INT(2*F36) -> 400 | I21: 100 | P21: % of Y = | Q21: 100 | T21: 16.281 | U21: 11.684 | V21: 60
F22: =IF(G21>Menu!S15,"Capacité poulie excédée","") ->  | P22: = 0? | Q22: =(-Q20) + (Q19*Q21/100)*(TAN(2*Q18*PI()/180)) + (Q19*(100-Q21)/100)*(TAN(Q18*PI()/180)) -> -0.002293291592 | T22: 15.402 | U22: 8.265 | V22: 70
T23: 14.62 | U23: 5.216 | V23: 80
I24: Hauteur attache sommet = | P24: X1 = | Q24: =Q20 - (Q25*TAN(Q18*PI()/90)) -> 0.002293291592 | T24: 13.918 | U24: 2.476 | V24: 90
F25: ="Angle levage max = " -> Angle levage max = | H25: =ROUND(ATAN(F45/I21)*180/PI(),1)&" Deg" -> 16.7 Deg | P25: Y2 = | Q25: =(Q21/100)*Q19 -> 100 | T25: 13.282 | U25: 0.002 | V25: 100
F26: =ATAN(F45/I21)*180/PI() -> 16.69924423
G35: ="Charge cabestan = "&INT(SQRT((F36^2) + (K42^2)))&" lbs" -> Charge cabestan = 208 lbs
F36: =Menu!K16 -> 200
E40: =IF(F36>Menu!S17,"Hoist Capacity Exceeded","") -> 
E42: ="Cabestan est "&Menu!K19 -> Cabestan est Hoist 4 - 5000 | K42: =K17/2 -> 57.5
F45: 30 | G45: pi
D47: Distance Cabestan
K48: =F36 -> 200
B49: Notes de chantier
B53: Avertissement: Les informations et les calculs par ce document ont ete developpes par une source fiable conformement aux normes de l'industrie et sont consideres comme correctes. Cette information ne devrait pas etre invoquee pour une application specifique sans l'examen par professionnel competent incluant la verification de son exactitude, la pertinence et l'applicabilite. Ce documentpeutne pas etre adaptable a' toutes les situations et doit etre utilise a vois risques et perils.
B55: =Credits!B11 -> French Version 1.0 - January 11, 2018 | L55: Developed by Griswold Tower Software, PC

Sheet Type 3
B3: Contact | C3: Gordon Lyman | L3: Bill Griswold
B4: Email | C4: gl@esystemtraining.com | L4: BillGriswold@Live.com
B5: Mobile No | C5: (210) 410-2091 | F5: Poulie de tête et de basse avec Tag | L5: (704) 906-9113
E7: Information Projet: | I7: Note: Champs en | J7: Bleu | K7: sont les entrées. | Y7: Tour Monopole
B8: Date: | E8: =Menu!E9 -> 00:00:00 | Y8: Tour Autoportante
B9: Entrepreneur: | E9: =Menu!K9 -> 0 | Y9: Tour Haubannée
B10: # projet: | E10: =Menu!K15 -> 0
B11: Monteur certifie: | E11: =Menu!K14 -> 0
B12: Client: | E12: =Menu!E10 -> 0 | Q12: Distance
B13: Nom du site: | E13: =Menu!E12 -> 0 | Q13: Angle
B14: # Site: | E14: =Menu!E13 -> 0 | Q14: =L16 -> Distance
B15: Type de Tour: | E15: Tour Haubannée | I15: Choisir angle de levageou ecartement
L16: Distance | M16: =+IF(Q14="Angle","Degrees","pi") -> pi
Q17: =IF(Q14="Distance",TRUE,FALSE) -> TRUE
F18: =Menu!K17 -> Block 3 - 5000 | L18: Notes pour L'ingénieur:
L19: Charge horizontale maximale tour | Q19: =IF(Q14="Angle",TRUE,FALSE) -> FALSE
G20: =R30 -> 488.0252603 | L20: Tour | M20: =R25 -> 24.31034483 | N20: lbs.
E21: =IF(G20>Menu!S15,"Capacité poulie excédée","") ->  | L21: Charge verticale maximale tour | Q21: Alpha = | R21: =IF(Q14="Angle",G25,G26) -> 5.710593137
G22: =IF(Q14="Angle",IF(G25>10,"Attention, Angle de charge excède 10 degrés",""),IF(G26>10,"Attention, Angle de charge excède 10 degrés","")) ->  | L22: Tour | M22: =R24+R28 -> 487.4193901 | N22: lbs. | Q22: Standoff = | R22: =IF(Q14="Angle",E32,E31) -> 5
L23: Charges d'impact exclus | Q23: Beta = | R23: =ATAN(H38/(G48-R22))*180/PI() -> 60.57700172
Q24: A = | R24: =F36/(1-TAN(R21*PI()/180)*TAN(R23*PI()/180)) -> 243.1034483
G25: 5 | I25: =IF(Q14="Angle","Degrés","") ->  | Q25: B = | R25: =R24*TAN(R21*PI()/180) -> 24.31034483
G26: =ATAN((E31)/(K26-H38))*180/PI() -> 5.710593137 | I26: =IF(Q14="Distance","Degrés","") -> Degrés | K26: 100 | Q26: C = | R26: =R25*TAN(R23*PI()/180) -> 43.10344828
Q27: D = | R27: =R25 -> 24.31034483
G28: =IF(R21>R31,"Attention – Angle maximum de charge excédé","") ->  | Q28: Line Load = | R28: =SQRT((R24^2)+(R25^2)) -> 244.3159418
Q29: Tag Load = | R29: =SQRT((R26^2)+(R27^2)) -> 49.48636296
E30: Écartement | Q30: Crown Block | R30: =SQRT((R25^2)+((R28+R24)^2)) -> 488.0252603
E31: 5 | Q31: Error Angle | R31: =ATAN(G48/K26)*180/PI() -> 18.36616641
E32: =(K26-H38)*TAN(G25*PI()/180) -> 4.374433176
L33: =IF(J42>70,"Attention, Angle du tag excède 70 degrés","") -> 
F36: =Menu!K16 -> 200 | G36: lbs.
F38: =F43 -> 244.3159418 | G38: lbs. | H38: 50 | J38: =R29 -> 49.48636296 | K38: lbs. | M38: Cabestan Tag
M39: =Menu!K20 -> Hoist 4 - 5000
E40: =IF(E46>Menu!S16,"Block Capacity Exceeded","") ->  | M40: =IF(J38>Menu!S18,"Capacity Exceeded","") -> 
M41: Charge Horizontale Tag
J42: =R23 -> 60.57700172
F43: =R28 -> 244.3159418 | J43: Degrés | M43: =R27 -> 24.31034483
E46: =1.414*F43 -> 345.4627417 | I46: =Menu!K19 -> Hoist 4 - 5000 | M46: =R26 -> 43.10344828
E47: =Menu!K18 -> Block 3 - 5000 | M47: Charge VerticaleTag
G48: 33.2 | I48: =IF(F43>Menu!S17,"Capacité excédée","") -> 
B51: Notes de chantier
B54: Avertissement: Les informations et les calculs par ce document ont ete developpes par une source fiable conformement aux normes de l'industrie et sont consideres comme correctes. Cette information ne devrait pas etre invoquee pour une application specifique sans l'examen par professionnel competent incluant la verification de son exactitude, la pertinence et l'applicabilite. Ce documentpeutne pas etre adaptable a' toutes les situations et doit etre utilise a vois risques et perils.
B57: =Credits!B11 -> French Version 1.0 - January 11, 2018 | N57: Developed by Griswold Tower Software, PC

Sheet Recherche Angle
B3: Contact | C3: Gordon Lyman | L3: Bill Griswold
B4: Email | C4: gl@esystemtraining.com | L4: BillGriswold@Live.com
B5: Mobile No | C5: (210) 410-2091 | F5: Outil de recherche d'angles | L5: (704) 906-9113
E7: Information Projet: | I7: Note: Champs en | J7: Bleu | K7: sont les entrees. | Y7: Tour Monopole
B8: Date: | E8: =Menu!E9 -> 00:00:00 | Y8: Tour Autoportante
B9: Entrepreneur: | E9: =Menu!K9 -> 0 | Y9: Tour Haubannée
B10: # Projet: | E10: =Menu!K15 -> 0
B11: Monteur certifie: | E11: =Menu!K14 -> 0
B12: Client: | E12: =Menu!E10 -> 0 | Q12: Distance
B13: Nom du site: | E13: =Menu!E12 -> 0 | Q13: Angle
B14: # Site: | E14: =Menu!E13 -> 0 | I14: =IF(R21>R31,"WARNING - LOAD ANGLE EXCEEDS MAXIMUM!","") -> 
B15: Type de tour: | E15: Tour Autoportante
Q17: =IF(L16="Distance",TRUE,FALSE) -> FALSE
Q19: =IF(L16="Angle",TRUE,FALSE) -> FALSE
Q21: Alpha = | R21: =IF(L16="Angle",G25,F23) -> 9.462322208
Q22: Standoff = | R22: =IF(L16="Angle",#REF!,E32) -> 0
F23: =ATAN((F48)/(K25))*180/PI() -> 9.462322208 | G23: Degrés | Q23: Beta = | R23: =ATAN(H37/(F48-R22))*180/PI() -> 0
Q24: A = | R24: =F36/(1-TAN(R21*PI()/180)*TAN(R23*PI()/180)) -> 0
I25: =IF(L16="Angle","Degrees","") ->  | K25: 150 | Q25: B = | R25: =R24*TAN(R21*PI()/180) -> 0
I26: =IF(L16="Distance","Degrees","") ->  | Q26: C = | R26: =R25*TAN(R23*PI()/180) -> 0
Q27: D = | R27: =R25 -> 0
Q28: Line Load = | R28: =SQRT((R24^2)+(R25^2)) -> 0
Q29: Tag Load = | R29: =SQRT((R26^2)+(R27^2)) -> 0
Q30: Crown Block | R30: =SQRT((R25^2)+((R28+R24)^2)) -> 0
Q31: Error Angle | R31: =ATAN(F48/K25)*180/PI() -> 9.462322208
F37: =90-F23 -> 80.53767779
F38: Degrés
F48: 25
B51: Notes de Chantier
B54: Avertissement: Les informations et les calculs par ce document ont ete developpes par une source fiable conformement aux normes de l'industrie et sont consideres comme correctes. Cette information ne devrait pas etre invoquee pour une application specifique sans l'examen par professionnel competent incluant la verification de son exactitude, la pertinence et l'applicabilite. Ce documentpeutne pas etre adaptable a' toutes les situations et doit etre utilise a vois risques et perils
B57: =Credits!B11 -> French Version 1.0 - January 11, 2018 | N57: Developed by Griswold Tower Software, PC

Sheet Montage des poulies
B3: Contact | E3: Gordon Lyman | U3: Bill Griswold | AA3: Crown Block Load | AB3: Heel Block Load
B4: Email | D4: gl@esystemtraining.com | U4: BillGriswold@Live.com | Z4: Type
B5: Mobile No | E5: (210) 410-2091 | I5: Montage poulies de tête et de basse sur face | U5: (704) 906-9113 | Z5: Type 1 | AA5: ='Type 1'!J22 -> 715.9339615
Z6: Type 2 | AA6: ='Type 2'!G21 -> 400
G7: Information Projet: | Z7: Type 3 | AA7: ='Type 3'!G20 -> 488.0252603 | AB7: ='Type 3'!E46 -> 345.4627417
B8: Date: | G8: =Menu!E9 -> 00:00:00
B9: Entrepreneur: | G9: =Menu!K9 -> 0 | Z9: ='Type 1'!G15 -> Tour Autoportante
B10: # Projet: | G10: =Menu!K15 -> 0 | Z10: ='Type 2'!E15 -> Tour Haubannée
B11: Monteur certifie: | G11: =Menu!K14 -> 0 | Z11: ='Type 3'!E15 -> Tour Haubannée
B12: Client: | G12: =Menu!E10 -> 0
B13: Nom du site: | G13: =Menu!E12 -> 0 | Z13: Panier
B14: # Site: | G14: =Menu!E13 -> 0 | P14: =IF(G15="Tour Monopole","WARNING - This Page Not Applicable to Monopoles","") ->  | Z14: Étranglement
B15: Type de Tour: | G15: =IF(Z16="Type 1",Z9,IF(Z16="Type 2",Z10,IF(Z16="Type 3",Z11,""))) -> Tour Haubannée | N15: =IF(G15="Monopole Tower","<----","") -> 
B16: Type de Levage: | G16: Type 2 | Z16: =G16 -> Type 2
C18: Attachement Poulie de Tête à la Face
B19: Arrangement Elingue | G19: Panier | P19: Charge Poulie | T19: =IF(Z16="Type 1",AA5,IF(Z16="Type 2",AA6,(IF(Z16="Type 3",AA7,"")))) -> 400 | W19: Lbs | Z19: =G19 -> Panier
B20: Elingue Poulie de Tête | G20: S2 - 16 - 1500 | P20: Longueur Elinque | T20: =IF(Z16="","",VLOOKUP(Z20,Équipements!E29:J42,3,FALSE)*12) -> 192 | W20: Po. | Z20: =G20 -> S2 - 16 - 1500
B21: Largeur Face au Sommet | G21: 30 | N21: In. | P21: Capacite Elingue | T21: =IF(Z16="","",VLOOKUP(Z20,Équipements!E29:J42,5,FALSE)) -> 1500 | W21: Lbs
B22: Dimension Platte | G22: 2.5 | N22: In. | P22: Charge Elingue | T22: =IF(Z16="","",IF(Z19="Étranglement",1,0.5)*(T19/2)/COS(PI()*T23/360)) -> 101.3540061 | W22: Lbs
P23: Angle | T23: =IF(Z16="","",(360/PI())*ASIN(G21*IF(Z19="Étranglement",0.5,1)/(T20-3.14*G22))) -> 18.75176505 | W23: Degreés
Q24: =IF(Z16="","",IF(T21>T22,"Elingue Pour Tete Ok","Élingue poulie de tête surchargée")) -> Elingue Pour Tete Ok
P25: =IF(Z16="","",IF(G21>IF(Z19="Étranglement",(T20-3.14*G22),0.5*(T20-3.14*G22)),"Attention – Élingue poulie de tête trop courte","")) -> 
C26: =IF(Z16="Type 3","Attache Poulie de Base à la Face","") -> 
B27: =IF(Z16="Type 3","Arrangement Elingue","") ->  | G27: Panier | P27: =IF(Z16="Type 3","Charge Poulie","") ->  | T27: =IF(Z16="Type 1","",IF(Z16="Type 2","",IF(Z16="Type 3",AB7,""))) ->  | W27: =IF(Z16="Type 3","Lbs","") ->  | Z27: =G27 -> Panier
B28: =IF(Z16="Type 3","Elingue Poulie à la Base","") ->  | G28: S1 - 10 - 1000 | P28: =IF(Z16="Type 3","Longuer Elingue","") ->  | T28: =IF(Z16="Type 3",VLOOKUP(Z28,Équipements!E29:J42,3,FALSE)*12,"") ->  | W28: =IF(Z16="Type 3","Po.","") ->  | Z28: =G28 -> S1 - 10 - 1000
B29: =IF(Z16="Type 3","Largeur face à la base","") ->  | G29: 30 | N29: =IF(Z16="Type 3","In.","") ->  | P29: =IF(Z16="Type 3","Capacite Elingue","") ->  | T29: =IF(Z16="Type 3",VLOOKUP(Z28,Équipements!E29:J42,5,FALSE),"") ->  | W29: =IF(Z16="Type 3","Lbs","") -> 
B30: =IF(Z16="Type 3","Dimension Platte","") ->  | G30: 2.5 | N30: =IF(Z16="Type 3","In.","") ->  | P30: =IF(Z16="Type 3","Charge Elingue","") ->  | T30: =IF(Z16="Type 3",IF(Z27="Étranglement",1,0.5)*(T27/2)/COS(PI()*T31/360),"") ->  | W30: =IF(Z16="Type 3","Lbs","") -> 
P31: =IF(Z16="Type 3","Angle","") ->  | T31: =IF(Z16="Type 3",(360/PI())*ASIN(G29*IF(Z27="Étranglement",0.5,1)/(T28-3.14*G30)),"") ->  | W31: =IF(Z16="Type 3","Degreés","") -> 
Q32: =IF(Z16="Type 3",IF(T29>T30,"Elingue Poulie Base Ok.","Élingue poulie de base surchargée"),"") -> 
P33: =IF(Z16="Type 3",IF(G29>IF(Z27="Étranglement",(T28-3.14*G30),0.5*(T28-3.14*G30)),"Attention – Élingue poulie de base trop courte",""),"") -> 
O43: Notes:
O44: 1. Largeur Face à Lextérieur des Plattes
O45: 2. Angle < 60 degreés
B49: Notes de Chantier
B53: Avertissement: Les informations et les calculs par ce document ont ete developpes par une source fiable conformement aux normes de l'industrie et sont consideres comme correctes. Cette information ne devrait pas etre invoquee pour une application specifique sans l'examen par professionnel competent incluant la verification de son exactitude, la pertinence et l'applicabilite. Ce documentpeutne pas etre adaptable a' toutes les situations et doit etre utilise a vois risques et perils.
B56: =Credits!B11 -> French Version 1.0 - January 11, 2018 | X56: Developed by Griswold Tower Software, PC

Sheet Équipements
B3: Contact | C3: Gordon Lyman | I3: Bill Griswold
B4: Email | C4: gl@esystemtraining.com | I4: BillGriswold@Live.com
B5: Mobile No | C5: (210) 410-2091 | D5: List des équipements de l'entrepreneur | I5: (704) 906-9113
B8: Hoist Name | C8: Working Capacity (Pounds) | E8: Directions
B9: Hoist 1 - 1000 | C9: 1000 | E9: Faites la liste de tous les palans, blocs et élingues applicables dans les colonnes appropriées. Si vous avez plusieurs palans, poulies ou élingues identiques, ne les lister qu'une seule fois. Fournir également la capacité de travail nominale pour chacun de ceux-ci et la longueur des élingues. Assurez-vous de sauvegarder une copie maîtresse de cette feuille de calcul une fois que cette information a été saisie afin de ne pas avoir à ressaisir les informations chaque fois que vous l'utilisez. Lorsque vous démarrez un nouveau plan de levage, choisissez le (s) palan (s) et le (s) poulie (s) sur la feuille de menu en utilisant les boîtes déroulantes situées juste en dessous de la cellule d'entrée de charge soulevée. Les noms de ces pièces d'équipement apparaîtront sur les feuilles du plan de gréement de types 1, 2 et 3. Si la capacité de l'un de ces équipements est dépassée, un avertissement apparaîtra dans les LETTRES ROUGES adjacentes à l’équipement
B10: Hoist 2 - 1500 | C10: 1500
B11: Hoist 3 - 2000 | C11: 2000
B12: Hoist 4 - 5000 | C12: 5000
B22: Block Name | C22: Working Capacity (Pounds)
B23: Block 1 - 1000 | C23: 1000
B24: Block 2 - 2000 | C24: 2000
B25: Block 3 - 5000 | C25: 5000
B26: Block 4 - 7500 | C26: 7500
E28: Sling Name | G28: Length (Ft) | I28: Capacity (Pounds)
E29: S1 - 10 - 1000 | G29: 10 | I29: 1000
E30: S2 - 16 - 1500 | G30: 16 | I30: 1500
E31: S3 - 12 - 2000 | G31: 12 | I31: 2000
E32: S4 - 18 - 2000 | G32: 18 | I32: 2000
E33: S5 - 15 - 5000 | G33: 15 | I33: 5000
E34: S6 - 20 - 5000 | G34: 20 | I34: 5000
B44: Avertissement: Les informations et les calculs par ce document ont ete developpes par une source fiable conformement aux normes de l'industrie et sont consideres comme correctes. Cette information ne devrait pas etre invoquee pour une application specifique sans l'examen par professionnel competent incluant la verification de son exactitude, la pertinence et l'applicabilite. Ce documentpeutne pas etre adaptable a' toutes les situations et doit etre utilise a vois risques et perils.
B46: =Credits!B11 -> French Version 1.0 - January 11, 2018 | K46: Developed by Griswold Tower Software, PC

Sheet Exigences de levage

Sheet Credits
A2: The Equation Development, Drafting and Primary Spreadsheet by William A. Griswold, Jr., PE
A3: Griswold Tower Software, PC
A5: Overview and Editing provided by Gordon Lyman
A6: eSystem Training Solutions
A8: Additional Macro Development provided by James M. Ruedlinger, PE
A9: Electronics Research, Inc.
A11: Version | B11: French Version 1.0 - January 11, 2018
A13: 4.2 | B13: Formatting Improvements
A14: 4.3 | B14: Corrected problems with dropdown boxes on the Face Block Mount Tab
A15: 4.4 | B15: Added Note to Engineer - Reactions do not include an Impact Factor - Fixed "Angle" or "Distance" dropdown on Type 3 tab.
A16: 4.5 | B16: Corrected error in the Tag Angle - Type 1 Lift
A17: FV 1.0 | B17: Jan 12, 2018 - Gordon Lyman and Bill Griswold converted spreadsheet to French with the assistance of Richard Gravel of Captel, Inc.

Sheet Sheet2 (hidden)
C2: =IF(J7="Monopole Tower","MP_PIC",1) -> MP_PIC
J3: Monopole Tower
J4: Self Support Tower
J5: Guyed Tower
J7: Monopole Tower

Sheet Sheet1 (hidden)
G4: X1 | H4: Y2
B5: Alpha = | C5: 7 | G5: 0.002 | H5: 100
B6: Beta = | C6: 30 | G6: 2.476 | H6: 90
B7: Load = | C7: 300 | G7: 5.216 | H7: 80
G8: 8.265 | H8: 70
B9: tan(Alpha) = | C9: =TAN(C5*PI()/180) -> 0.1227845609 | G9: 11.684 | H9: 60
B10: tan(Alpha/2) = | C10: =TAN(C5*PI()/360) -> 0.06116262015 | G10: 15.556 | H10: 50
B11: tan(Beta) = | C11: =TAN(C6*PI()/180) -> 0.5773502692 | G11: 20 | H11: 40
G12: 25.192 | H12: 30
C13: =C7*C9 -> 36.83536827 | G13: 31.423 | H13: 20
C14: =C13*C10 -> 2.252947638 | G14: 39.235 | H14: 10
C15: =C7*(1 - C9*C10) -> 297.7470524 | G15: 50 | H15: 0
C16: =C15*C11 -> 171.9043408
